lending/lending_fUSD_20260211
["ID","MTS","AMOUNT","RATE_DAILY","PERIOD"]
[405114623,1770850243246,-1000.0,0.0001785,2]
[405114625,1770850243255,-1000.0,0.0001785,2]
[405114627,1770850243264,-150.0,0.00017852,2]
[405114629,1770850243274,-150.0,0.00017852,2]
[405114631,1770850243284,-150.0,0.00017853,2]
[405114633,1770850243293,-1000.0,0.00017854,2]
[405114635,1770850243302,-200.0,0.00017856,2]
[405114637,1770850243312,-1000.0,0.00017857,2]
[405114639,1770850243321,-1178.08816569,0.00017859,2]
[405114640,1770850243331,-150.0,0.0001786,2]
[405114642,1770850243340,-1000.0,0.0001786,2]
[405114644,1770850243350,-150.0,0.00017861,2]
[405114646,1770850243359,-150.0,0.00017861,2]
[405114648,1770850243369,-500.0,0.00017863,2]
[405114650,1770850243379,-150.0,0.00017883,2]
[405114652,1770850243389,-150.0,0.00017886,2]
[405114655,1770850243399,-1000.0,0.0001789,2]
[405114657,1770850243409,-1000.0,0.00017893,2]
[405114659,1770850243419,-1000.0,0.00017895,2]
[405114661,1770850243429,-1000.0,0.00017899,2]
[405114662,1770850243438,-222.37304917,0.000179,2]
[405114664,1770850243447,-167.02062498,0.000179,2]
[405114666,1770850243456,-150.0,0.000179,2]
[405114668,1770850243467,-150.0,0.000179,2]
[405114670,1770850243476,-1264.73302685,0.000179,2]
[405114672,1770850243486,-2240.69655474,0.000179,2]
[405114674,1770850243498,-473.38822935,0.000179,2]
[405114676,1770850243508,-8805.48830097,0.000179,2]
[405114678,1770850243518,-6210.0,0.000179,2]
[405114680,1770850243528,-150.0,0.00017901,2]
[405114682,1770850243538,-1000.0,0.00017901,2]
[405114684,1770850243556,-150.0,0.00017904,2]
[405114686,1770850243566,-1000.0,0.00017905,2]
[405114688,1770850243577,-1000.0,0.00017905,2]
[405114690,1770850243587,-1000.0,0.00017906,2]
[405114692,1770850243597,-1000.0,0.00017909,2]
[405114694,1770850243606,-1000.0,0.00017909,2]
[405114696,1770850243617,-150.0,0.00017912,2]
[405114698,1770850243629,-150.0,0.00017912,2]
[405114700,1770850243639,-150.0,0.00017915,2]
[405114702,1770850243649,-500.0,0.00017918,2]
[405114704,1770850243658,-150.0,0.0001792,2]
[405114706,1770850243668,-1000.0,0.00017922,2]
[405114708,1770850243680,-1000.0,0.00017924,2]
[405114710,1770850243689,-1000.0,0.00017924,2]
[405114711,1770850243698,-1000.0,0.00017926,2]
[405114712,1770850243707,-1000.0,0.00017926,2]
[405114713,1770850243717,-1000.0,0.00017929,2]
[405114714,1770850243728,-1000.0,0.0001793,2]
[405114715,1770850243737,-150.0,0.00017931,2]
[405114716,1770850243749,-1000.0,0.00017931,2]
[405114717,1770850243759,-1000.0,0.00017934,2]
[405114718,1770850243769,-1000.0,0.00017935,2]
[405114719,1770850243779,-1000.0,0.00017939,2]
[405114721,1770850243790,-150.0,0.00017942,2]
[405114722,1770850243800,-1000.0,0.00017943,2]
[405114724,1770850243810,-150.0,0.00017949,2]
[405114726,1770850243820,-345.24,0.00017949,2]
[405114728,1770850243832,-150.0,0.0001795,2]
[405114730,1770850243842,-1000.0,0.0001795,2]
[405114732,1770850243855,-1000.0,0.00017952,2]
[405114734,1770850243865,-1000.0,0.00017952,2]
[405114736,1770850243876,-150.0,0.00017953,2]
[405114738,1770850243887,-1000.0,0.00017953,2]
[405114740,1770850243897,-1359.1,0.00017955,2]
[405114742,1770850243907,-1000.0,0.00017955,2]
[405114744,1770850243916,-235.25,0.00017957,2]
[405114746,1770850243927,-1000.0,0.0001796,2]
[405114748,1770850243937,-1000.0,0.00017962,2]
[405114750,1770850243947,-1000.0,0.00017962,2]
[405114753,1770850243957,-1000.0,0.00017963,2]
[405114755,1770850243968,-1000.0,0.00017968,2]
[405114757,1770850243977,-700.0,0.0001797,2]
[405114759,1770850243987,-500.0,0.0001797,2]
[405114761,1770850243999,-700.0,0.0001797,2]
[405114763,1770850244008,-500.0,0.0001797,2]
[405114765,1770850244018,-500.0,0.0001797,2]
[405114766,1770850244027,-500.0,0.0001797,2]
[405114768,1770850244038,-500.0,0.0001797,2]
[405114770,1770850244048,-500.0,0.0001797,2]
[405114772,1770850244058,-500.0,0.0001797,2]
[405114774,1770850244068,-500.0,0.0001797,2]
[405114776,1770850244077,-706.22551575,0.0001797,2]
[405114778,1770850244087,-614.74334455,0.0001797,2]
[405114780,1770850244097,-500.0,0.00017972,2]
[405114782,1770850244107,-1000.0,0.00017977,2]
[405114784,1770850244116,-1000.0,0.00017977,2]
[405114786,1770850244126,-1000.0,0.00017978,2]
[405114788,1770850244137,-1000.0,0.00017979,2]
[405114790,1770850244147,-1000.0,0.00017979,2]
[405114792,1770850244157,-1000.0,0.00017982,2]
[405114795,1770850244170,-1000.0,0.00017992,2]
[405114797,1770850244180,-1000.0,0.00017996,2]
[405114799,1770850244190,-1000.0,0.00017996,2]
[405114801,1770850244200,-393778.5188584,0.00017999,2]
[405114803,1770850244210,-500.0,0.00017999,2]
[405114805,1770850244219,-500.0,0.00017999,2]
[405114807,1770850244229,-500.0,0.00017999,2]
[405114809,1770850244239,-500.0,0.00017999,2]
[405114811,1770850244249,-500.0,0.00017999,2]
[405114813,1770850244259,-500.0,0.00017999,2]
[405114815,1770850244268,-500.0,0.00017999,2]
[405114817,1770850244277,-500.0,0.00017999,2]
[405114819,1770850244288,-500.0,0.00017999,2]
[405114821,1770850244298,-303.69091978,0.00017999,2]
[405114823,1770850244308,-12830.9414576,0.00017999,2]
[405114825,1770850244317,-300.0,0.00017999,2]
[405114827,1770850244327,-96793.1951928,0.00017999,2]
[405114829,1770850244337,-300.0,0.00017999,2]
[405114831,1770850244347,-171.5703775,0.00017999,2]
[405114833,1770850244356,-310.23162578,0.00017999,2]
[405114835,1770850244366,-100648.8655847,0.00017999,2]
[405114837,1770850244376,-3332.7766279,0.00017999,2]
[405114839,1770850244386,-300.0,0.00017999,2]
[405114841,1770850244396,-300.0,0.00017999,2]
[405114843,1770850244406,-300.0,0.00017999,2]
[405114845,1770850244415,-6547.1124111,0.00017999,2]
[405114847,1770850244424,-300.0,0.00017999,2]
[405114849,1770850244434,-666.0,0.00017999,2]
[405114851,1770850244443,-300.0,0.00017999,2]
[405114853,1770850244453,-266.4455033,0.00017999,2]
[405114855,1770850244463,-3466007.11865404,0.00018,2]
[405114941,1770850245381,-425.63,0.00018,2]
[405114944,1770850245401,-1579.5763362,0.00018,2]
[405114947,1770850245423,-1405.08006027,0.00018,2]
[405114963,1770850245576,-1585.3832149,0.00018,2]
[405115095,1770850246917,-949.35999969,0.00018,2]
[405115097,1770850246934,-350.625,0.00018,2]
[405115114,1770850247090,-512.6900035,0.00018,2]
[405115534,1770850389863,521.17768398,0.000124,2]
[405115535,1770850389909,743.88429438,0.000124,2]
[405115536,1770850389969,799.56094698,0.000124,2]
[405115537,1770850390078,2658.12200869,0.000124,2]
[405115538,1770850492615,222.37304921,0.00012469,2]
[405115539,1770850497925,1297.41,0.00035616,120]
[405115543,1770850537915,7924.9394709,0.00012469,2]
[405115544,1770850568251,3574.9,0.00035616,120]
[405115548,1770850593515,220.11267068,0.000124,2]
[405115549,1770850593585,623.76536905,0.000124,2]
[405115550,1770850593642,272.6971737,0.000124,2]
[405115551,1770850593695,262.18027309,0.000124,2]
[405115552,1770850608612,1493.79770316,0.00012469,2]
[405115554,1770850627648,315.5921529,0.00012469,2]
[405115560,1770851250992,2271.29,0.00012391,2]
[405115590,1770851432747,-172.22,0.00012518,2]
[405115591,1770851432758,-250.0,0.00012538,2]
[405115592,1770851432768,-217.61561231,0.00012598,2]
[405115593,1770851432779,-300.0,0.00012598,2]
[405115594,1770851432792,-1200.0,0.00012599,2]
[405115595,1770851432802,-1000.0,0.000126,2]
[405115596,1770851432812,-4642.3711,0.000126,2]
[405115597,1770851432822,-3064.7162,0.000126,2]
[405115598,1770851432832,-5962.34928297,0.000126,2]
[405115599,1770851432844,-640.20590775,0.000126,2]
[405115600,1770851432856,-3397.44480928,0.000126,2]
[405115601,1770851432866,-222.37304917,0.00013374,2]
[405115602,1770851432876,-500.0,0.00013698,2]
[405115603,1770851432890,-500.0,0.00013698,2]
[405115604,1770851432901,-500.0,0.00013698,2]
[405115605,1770851432911,-500.0,0.00013698,2]
[405115606,1770851432920,-500.0,0.00013698,2]
[405115607,1770851432931,-500.0,0.00013698,2]
[405115608,1770851432942,-500.0,0.00013698,2]
[405115609,1770851432951,-500.0,0.00013698,2]
[405115610,1770851432960,-500.0,0.00013698,2]
[405115611,1770851432970,-303.69091978,0.00013698,2]
[405115612,1770851432979,-539.52193569,0.00013698,2]
[405115613,1770851432989,-250.0,0.0001377,2]
[405115614,1770851432999,-269.07993902,0.00013791,2]
[405115615,1770851433011,-730.91006098,0.00013791,2]
[405115616,1770851433021,-4615.42,0.00013791,2]
[405115617,1770851433031,-7061.78,0.00013791,2]
[405115618,1770851433042,-9999.99,0.00013791,2]
[405115619,1770851433051,-150.99,0.00013791,2]
[405115620,1770851433061,-9999.99,0.00013791,2]
[405115621,1770851433071,-4112.53,0.00013791,2]
[405115622,1770851433081,-150.99,0.00013791,2]
[405115623,1770851433091,-65138.48054632,0.00013832,2]
[405115624,1770851433100,-1680.0,0.00013859,2]
[405115625,1770851433110,-222.37304917,0.00014279,2]
[405115626,1770851433120,-156.57,0.0001439,2]
[405115627,1770851433129,-299.21,0.00015149,2]
[405115628,1770851433139,-203.88,0.00015154,2]
[405115629,1770851433149,-222.37304917,0.00015185,2]
[405115630,1770851433159,-2351.0,0.00015245,2]
[405115631,1770851433169,-200.0,0.00015289,2]
[405115632,1770851433179,-1888.47076003,0.00015432,2]
[405115633,1770851433189,-350.0,0.00015836,2]
[405115634,1770851433199,-323.0,0.00015863,2]
[405115635,1770851433209,-836.01708025,0.00015901,2]
[405115636,1770851433219,-156.57,0.00015904,2]
[405115637,1770851433229,-1900.0,0.00016082,2]
[405115638,1770851433239,-222.37304917,0.0001609,2]
[405115639,1770851433249,-1461.33574281,0.00016201,2]
[405115640,1770851433259,-500.0,0.00016356,2]
[405115641,1770851433269,-500.0,0.00016356,2]
[405115642,1770851433279,-160.0,0.00016409,2]
[405115643,1770851433290,-598.3,0.00016428,2]
[405115644,1770851433300,-1359.1,0.00016438,2]
[405115645,1770851433310,-250.0,0.00016541,2]
[405115646,1770851433320,-210.40598716,0.00016661,2]
[405115647,1770851433329,-166.66,0.00016663,2]
[405115648,1770851433339,-165.75,0.00016712,2]
[405115649,1770851433348,-3292.0,0.00016769,2]
[405115650,1770851433359,-165.72983817,0.00016818,2]
[405115651,1770851433369,-1264.73302692,0.00016822,2]
[405115652,1770851433379,-9999.99,0.00016922,2]
[405115653,1770851433388,-626.05,0.00016922,2]
[405115654,1770851433398,-1264.73302685,0.00016942,2]
[405115655,1770851433407,-1359.1,0.00016944,2]
[405115656,1770851433417,-222.37304917,0.00016995,2]
[405115657,1770851433426,-2829.0,0.0001704,2]
[405115658,1770851433436,-1264.73302685,0.00017062,2]
[405115659,1770851433445,-411.55774058,0.00017099,2]
[405115660,1770851433455,-1264.73302685,0.00017181,2]
[405115661,1770851433464,-412.0,0.00017196,2]
[405115662,1770851433474,-5966.0,0.00017196,2]
[405115663,1770851433483,-166.66,0.00017213,2]
[405115664,1770851433492,-1000.0,0.0001726,2]
[405115665,1770851433502,-1264.73302685,0.00017301,2]
[405115666,1770851433512,-2000.0,0.000174,2]
[405115667,1770851433521,-1264.73302685,0.00017421,2]
[405115668,1770851433531,-1359.1,0.0001745,2]
[405115669,1770851433542,-1900.0,0.00017452,7]
[405115670,1770851433552,-1000.0,0.00017534,2]
[405115671,1770851433562,-1264.73302685,0.00017541,2]
[405115672,1770851433571,-150.0,0.00017553,2]
[405115673,1770851433581,-150.0,0.00017553,2]
[405115674,1770851433591,-150.486,0.00017553,2]
[405115675,1770851433601,-150.391,0.00017553,2]
[405115676,1770851433611,-150.397,0.00017553,2]
[405115677,1770851433622,-150.0,0.00017553,2]
[405115678,1770851433632,-150.0,0.00017553,2]
[405115679,1770851433643,-151.0,0.00017553,2]
[405115680,1770851433652,-150.405,0.00017553,2]
[405115681,1770851433662,-3487.0,0.00017553,2]
[405115682,1770851433671,-617.0,0.00017553,2]
[405115683,1770851433681,-1337.0,0.00017553,2]
[405115684,1770851433692,-1288.0,0.00017553,2]
[405115685,1770851433702,-150.0,0.00017553,2]
[405115686,1770851433711,-1273.0,0.00017553,2]
[405115687,1770851433721,-918.0,0.00017553,2]
[405115688,1770851433731,-1207.0,0.00017553,2]
[405115689,1770851433741,-2000.0,0.000176,2]
[405115690,1770851433750,-4189.81873464,0.0001764,2]
[405115691,1770851433760,-7132.44552381,0.00017673,2]
[405115692,1770851433770,-841.0,0.0001768,2]
[405115693,1770851433780,-7132.44552378,0.00017698,2]
[405115694,1770851433795,-1000.0,0.00017723,2]
[405115695,1770851433805,-7132.44552378,0.00017723,2]
[405115696,1770851433814,-1000.0,0.00017725,2]
[405115697,1770851433823,-500.0,0.00017726,7]
[405115698,1770851433833,-1000.0,0.00017727,2]
[405115699,1770851433843,-1000.0,0.00017727,2]
[405115700,1770851433854,-1000.0,0.00017728,2]
[405115701,1770851433864,-150.0,0.00017729,2]
[405115702,1770851433874,-1000.0,0.0001773,2]
[405115703,1770851433884,-1000.0,0.0001773,2]
[405115704,1770851433896,-150.0,0.00017731,2]
[405115705,1770851433906,-150.0,0.00017732,2]
[405115706,1770851433915,-3637.25860662,0.00017733,2]
[405115707,1770851433924,-150.0,0.0001774,2]
[405115708,1770851433935,-1000.0,0.0001774,2]
[405115709,1770851433944,-150.0,0.00017741,2]
[405115710,1770851433954,-1000.0,0.00017747,2]
[405115711,1770851433965,-7132.44552378,0.00017749,2]
[405115712,1770851433975,-150.0,0.00017751,2]
[405115713,1770851433984,-150.0,0.00017752,2]
[405115714,1770851433994,-213.15171385,0.00017752,2]
[405115715,1770851434004,-150.0,0.00017753,2]
[405115716,1770851434014,-3637.2586066,0.00017757,2]
[405115717,1770851434024,-150.0,0.00017761,2]
[405115718,1770851434033,-1000.0,0.00017762,2]
[405115719,1770851434045,-166.66,0.00017763,2]
[405115720,1770851434054,-150.0,0.00017764,2]
[405115721,1770851434063,-1000.0,0.00017764,2]
[405115722,1770851434073,-150.0,0.00017771,2]
[405115723,1770851434083,-1000.0,0.00017771,2]
[405115724,1770851434092,-150.0,0.00017772,2]
[405115725,1770851434101,-150.0,0.00017772,2]
[405115726,1770851434111,-150.0,0.00017773,2]
[405115727,1770851434121,-7132.44552378,0.00017774,2]
[405115728,1770851434130,-150.0,0.00017774,2]
[405115729,1770851434140,-150.0,0.00017774,2]
[405115730,1770851434149,-1000.0,0.00017779,2]
[405115731,1770851434159,-1000.0,0.00017779,2]
[405115732,1770851434168,-3637.2586066,0.00017781,2]
[405115733,1770851434178,-150.0,0.00017782,2]
[405115734,1770851434188,-1000.0,0.00017784,2]
[405115735,1770851434448,-1000.0,0.00017786,2]
[405115736,1770851434481,-1000.0,0.00017787,2]
[405115737,1770851434491,-1000.0,0.00017788,2]
[405115738,1770851434501,-1000.0,0.00017789,2]
[405115739,1770851434511,-1000.0,0.00017789,2]
[405115740,1770851434521,-150.0,0.00017791,2]
[405115741,1770851434531,-1000.0,0.00017791,2]
[405115742,1770851434541,-1000.0,0.00017793,2]
[405115743,1770851434551,-1000.0,0.00017797,2]
[405115744,1770851434561,-1000.0,0.00017798,2]
[405115745,1770851434570,-1000.0,0.00017798,2]
[405115746,1770851434580,-150.0,0.00017799,2]
[405115747,1770851434589,-1000.0,0.00017799,2]
[405115748,1770851434599,-1000.0,0.00017799,2]
[405115749,1770851434607,-7132.44552378,0.00017799,2]
[405115750,1770851434617,-150.0,0.00017801,2]
[405115751,1770851434628,-3637.2586066,0.00017805,2]
[405115752,1770851434638,-500.0,0.00017808,2]
[405115753,1770851434648,-1000.0,0.00017808,2]
[405115754,1770851434657,-1000.0,0.00017809,2]
[405115755,1770851434667,-150.0,0.00017811,2]
[405115756,1770851434676,-1000.0,0.00017816,2]
[405115757,1770851434686,-150.0,0.00017817,2]
[405115758,1770851434696,-150.0,0.00017818,2]
[405115759,1770851434705,-2000.0,0.0001782,2]
[405115760,1770851434715,-2000.0,0.0001782,2]
[405115761,1770851434725,-1000.0,0.00017822,2]
[405115762,1770851434734,-150.0,0.00017824,2]
[405115763,1770851434743,-7132.44552378,0.00017824,2]
[405115764,1770851434753,-1000.0,0.00017825,2]
[405115765,1770851434762,-1000.0,0.00017825,2]
[405115766,1770851434772,-1000.0,0.00017826,2]
[405115767,1770851434781,-3637.2586066,0.00017828,2]
[405115768,1770851434791,-100476.39903326,0.0001783,2]
[405115769,1770851434801,-1000.0,0.00017833,2]
[405115770,1770851434811,-150.0,0.00017834,2]
[405115771,1770851434820,-1000.0,0.00017838,2]
[405115772,1770851434829,-1000.0,0.00017841,2]
[405115773,1770851434839,-150.0,0.00017845,2]
[405115774,1770851434848,-150.0,0.00017847,2]
[405115775,1770851434859,-7132.44552378,0.0001785,2]
[405115776,1770851434869,-487.0,0.00017853,2]
[405115777,1770851434879,-487.0,0.00017853,2]
[405115778,1770851434892,-487.0,0.00017853,2]
[405115779,1770851434902,-487.0,0.00017853,2]
[405115780,1770851434911,-487.0,0.00017853,2]
[405115781,1770851434921,-487.0,0.00017853,2]
[405115782,1770851434931,-840.21,0.00017853,2]
[405115783,1770851434940,-200.0,0.00017856,2]
[405115784,1770851434951,-1199.9,0.00017863,2]
[405115785,1770851434961,-500.0,0.00017863,2]
[405115786,1770851434970,-150.0,0.00017865,2]
[405115787,1770851434980,-1000.0,0.00017867,2]
[405115788,1770851434990,-150.0,0.00017868,2]
[405115789,1770851434999,-150.0,0.00017869,2]
[405115790,1770851435009,-1000.0,0.00017871,2]
[405115791,1770851435019,-150.0,0.00017873,2]
[405115792,1770851435029,-150.0,0.00017874,2]
[405115793,1770851435039,-7132.44552378,0.00017875,2]
[405115794,1770851435050,-1000.0,0.00017877,2]
[405115795,1770851435060,-1430.489,0.00017879,2]
[405115796,1770851435069,-1000.0,0.00017879,2]
[405115797,1770851435079,-1000.0,0.0001788,2]
[405115798,1770851435088,-1000.0,0.0001788,2]
[405115799,1770851435098,-150.0,0.00017882,2]
[405115800,1770851435108,-1000.0,0.00017883,2]
[405115801,1770851435119,-1000.0,0.00017884,2]
[405115802,1770851435128,-150.0,0.00017886,2]
[405115803,1770851435138,-167.43034797,0.00017887,2]
[405115804,1770851435147,-1000.0,0.00017888,2]
[405115805,1770851435157,-1000.0,0.0001789,2]
[405115806,1770851435167,-1000.0,0.00017892,2]
[405115807,1770851435178,-1000.0,0.00017894,2]
[405115808,1770851435187,-222.37304917,0.000179,2]
[405115809,1770851435197,-835.10312492,0.000179,2]
[405115810,1770851435206,-1000.0,0.000179,2]
[405115811,1770851435216,-5000.0,0.000179,2]
[405115812,1770851435225,-376.65221622,0.000179,2]
[405115813,1770851435235,-631.1843058,0.000179,2]
[405115814,1770851435245,-7132.44552378,0.000179,2]
[405115815,1770851435254,-2987.59540632,0.000179,2]
[405115816,1770851435264,-593.91435565,0.000179,2]
[405115817,1770851435274,-500.0,0.000179,2]
[405115818,1770851435283,-500.0,0.000179,2]
[405115819,1770851435293,-232.88924106,0.000179,2]
[405115820,1770851435303,-6411.0,0.000179,2]
[405115821,1770851435312,-1000.0,0.00017906,2]
[405115822,1770851435322,-1000.0,0.00017906,2]
[405115823,1770851435332,-150.0,0.00017911,2]
[405115824,1770851435343,-1000.0,0.00017912,2]
[405115825,1770851435353,-1000.0,0.00017914,2]
[405115826,1770851435363,-150.0,0.00017915,2]
[405115827,1770851435374,-150.0,0.00017915,2]
[405115828,1770851435384,-1000.0,0.00017917,2]
[405115829,1770851435393,-500.0,0.00017918,2]
[405115830,1770851435403,-1000.0,0.00017918,2]
[405115831,1770851435413,-1000.0,0.00017922,2]
[405115832,1770851435423,-1000.0,0.00017927,2]
[405115833,1770851435433,-150.0,0.00017934,2]
[405115834,1770851435443,-1000.0,0.00017935,2]
[405115835,1770851435453,-1000.0,0.00017939,2]
[405115836,1770851435463,-1000.0,0.0001794,2]
[405115837,1770851435473,-1000.0,0.0001794,2]
[405115838,1770851435483,-1000.0,0.00017941,2]
[405115839,1770851435493,-1000.0,0.00017945,2]
[405115840,1770851435503,-150.0,0.0001795,2]
[405115841,1770851435513,-1000.0,0.00017951,2]
[405115842,1770851435523,-1000.0,0.00017952,2]
[405115843,1770851435533,-1359.1,0.00017955,2]
[405115844,1770851435545,-1000.0,0.00017955,2]
[405115845,1770851435555,-1000.0,0.00017958,2]
[405115846,1770851435565,-1000.0,0.00017958,2]
[405115847,1770851435575,-1137.0414308,0.0001796,2]
[405115848,1770851435585,-150.0,0.00017961,2]
[405115849,1770851435595,-150.0,0.00017962,2]
[405115850,1770851435605,-150.0,0.00017963,2]
[405115851,1770851435616,-1000.0,0.00017963,2]
[405115852,1770851435627,-1000.0,0.00017963,2]
[405115853,1770851435637,-150.0,0.00017965,2]
[405115854,1770851435647,-500.0,0.0001797,2]
[405115855,1770851435657,-500.0,0.0001797,2]
[405115856,1770851435667,-500.0,0.0001797,2]
[405115857,1770851435678,-500.0,0.0001797,2]
[405115858,1770851435688,-500.0,0.0001797,2]
[405115859,1770851435697,-500.0,0.0001797,2]
[405115860,1770851435707,-500.0,0.0001797,2]
[405115861,1770851435716,-500.0,0.0001797,2]
[405115862,1770851435726,-500.0,0.0001797,2]
[405115863,1770851435736,-614.74334455,0.0001797,2]
[405115864,1770851435745,-700.0,0.0001797,2]
[405115865,1770851435755,-700.0,0.0001797,2]
[405115866,1770851435764,-706.22551575,0.0001797,2]
[405115867,1770851435775,-150.0,0.0001797,2]
[405115868,1770851435784,-500.0,0.00017972,2]
[405115869,1770851435796,-150.0,0.00017973,2]
[405115870,1770851435806,-1000.0,0.00017974,2]
[405115871,1770851435817,-1000.0,0.00017979,2]
[405115872,1770851435826,-1000.0,0.00017979,2]
[405115873,1770851435836,-1000.0,0.00017984,2]
[405115874,1770851435845,-167.75905219,0.0001799,2]
[405115875,1770851435855,-1000.0,0.00017991,2]
[405115876,1770851435865,-1000.0,0.00017993,2]
[405115877,1770851435875,-150.0,0.00017995,2]
[405115878,1770851435884,-150.0,0.00017997,2]
[405115879,1770851435898,-300.0,0.00017999,2]
[405115880,1770851435907,-300.0,0.00017999,2]
[405115881,1770851435918,-666.0,0.00017999,2]
[405115882,1770851435927,-300.0,0.00017999,2]
[405115883,1770851435938,-300.0,0.00017999,2]
[405115884,1770851435947,-300.0,0.00017999,2]
[405115885,1770851435957,-666.0,0.00017999,2]
[405115886,1770851435967,-266.4455033,0.00017999,2]
[405115887,1770851435978,-158.96601519,0.00017999,2]
[405115888,1770851435987,-1288.55538268,0.00017999,2]
[405115889,1770851435997,-1288.55538268,0.00017999,2]
[405115890,1770851436008,-1288.55538268,0.00017999,2]
[405115891,1770851436019,-1288.55538268,0.00017999,2]
[405115892,1770851436029,-1288.55538268,0.00017999,2]
[405115893,1770851436040,-1288.55538268,0.00017999,2]
[405115894,1770851436051,-1288.55538268,0.00017999,2]
[405115895,1770851436060,-1288.55538268,0.00017999,2]
[405115896,1770851436070,-1288.55538268,0.00017999,2]
[405115897,1770851436080,-1288.55538268,0.00017999,2]
[405115898,1770851436090,-1288.55538268,0.00017999,2]
[405115899,1770851436100,-1288.55538268,0.00017999,2]
[405115900,1770851436110,-1288.55538268,0.00017999,2]
[405115901,1770851436120,-1288.55538268,0.00017999,2]
[405115902,1770851436130,-1288.55538268,0.00017999,2]
[405115903,1770851436139,-1288.55538268,0.00017999,2]
[405115904,1770851436149,-1288.55538268,0.00017999,2]
[405115905,1770851436159,-1288.55538268,0.00017999,2]
[405115906,1770851436169,-1288.55538268,0.00017999,2]
[405115907,1770851436179,-1288.55538268,0.00017999,2]
[405115908,1770851436189,-1288.55538268,0.00017999,2]
[405115909,1770851436198,-1288.55538268,0.00017999,2]
[405115910,1770851436209,-1288.55538268,0.00017999,2]
[405115911,1770851436219,-1288.55538268,0.00017999,2]
[405115912,1770851436229,-1288.55538268,0.00017999,2]
[405115913,1770851436240,-1288.55538268,0.00017999,2]
[405115914,1770851436250,-1288.55538268,0.00017999,2]
[405115915,1770851436260,-1288.55538268,0.00017999,2]
[405115916,1770851436270,-1288.55538268,0.00017999,2]
[405115917,1770851436280,-1288.55538268,0.00017999,2]
[405115918,1770851436290,-1288.55538268,0.00017999,2]
[405115919,1770851436302,-1288.55538268,0.00017999,2]
[405115920,1770851436312,-1288.55538268,0.00017999,2]
[405115921,1770851436322,-1288.55538268,0.00017999,2]
[405115922,1770851436332,-1288.55538268,0.00017999,2]
[405115923,1770851436343,-1288.55538268,0.00017999,2]
[405115924,1770851436352,-1288.55538268,0.00017999,2]
[405115925,1770851436362,-1288.55538268,0.00017999,2]
[405115926,1770851436372,-1288.55538268,0.00017999,2]
[405115927,1770851436381,-1288.55538268,0.00017999,2]
[405115928,1770851436391,-1288.55538268,0.00017999,2]
[405115929,1770851436400,-1288.55538268,0.00017999,2]
[405115930,1770851436410,-1288.55538268,0.00017999,2]
[405115931,1770851436420,-1288.55538268,0.00017999,2]
[405115932,1770851436431,-1288.55538268,0.00017999,2]
[405115933,1770851436441,-1288.55538268,0.00017999,2]
[405115934,1770851436451,-1288.55538268,0.00017999,2]
[405115935,1770851436461,-1288.55538268,0.00017999,2]
[405115936,1770851436471,-1288.55538268,0.00017999,2]
[405115937,1770851436480,-1288.55538268,0.00017999,2]
[405115938,1770851436490,-1288.55538268,0.00017999,2]
[405115939,1770851436500,-1288.55538268,0.00017999,2]
[405115940,1770851436510,-1288.55538268,0.00017999,2]
[405115941,1770851436520,-1288.55538268,0.00017999,2]
[405115942,1770851436531,-1288.55538268,0.00017999,2]
[405115943,1770851436541,-1288.55538268,0.00017999,2]
[405115944,1770851436552,-1288.55538268,0.00017999,2]
[405115945,1770851436561,-1288.55538268,0.00017999,2]